fUSD/lending_fUSD_20240214
["ID","MTS","AMOUNT","RATE_DAILY","PERIOD"]
[314028882,1707926952930,-244.02975258,0.00022697,2]
[314028883,1707926952950,-912.61,0.0002271,2]
[314028884,1707926952970,-355.6,0.00022718,2]
[314028885,1707926952991,-187.62,0.00022722,2]
[314028886,1707926953011,-244.02975258,0.00022737,2]
[314028887,1707926953077,-281.72,0.0002274,2]
[314028888,1707926953098,-282.85620668,0.00022768,2]
[314028889,1707926953117,-9793.0,0.0002277,2]
[314028890,1707926953137,-244.02975258,0.00022778,2]
[314028891,1707926953157,-187.62,0.00022782,2]
[314028892,1707926953176,-244.02975258,0.00022819,2]
[314028893,1707926953195,-912.61,0.00022827,2]
[314028894,1707926953215,-187.62,0.00022842,2]
[314028895,1707926953235,-244.02975258,0.00022859,2]
[314028896,1707926953258,-6126.17309946,0.00022898,2]
[314028897,1707926954280,1767.19539474,0.0002,2]
[314028898,1707926964431,448.69867796,0.00020468,2]
[314028899,1707926967524,500.0,0.0002244,2]
[314028906,1707926970488,162.99,0.0002244,2]
[314028907,1707926970589,759.79912204,0.00022078,2]
[314028908,1707926970610,128.89492147,0.00022078,2]
[314028909,1707926986446,453.80454213,0.00020468,2]
[314028916,1707927006577,888.69404351,0.00022078,2]
[314028931,1707927031635,-1486.43739774,0.00022306,2]
[314028932,1707927031648,-300.0,0.00022306,2]
[314028933,1707927031748,-213.56260226,0.00022306,2]
[314028934,1707927031758,-63.8371377,0.00022439,2]
[314028935,1707927031770,-1849.12038309,0.00022439,2]
[314028936,1707927031779,-23900.0,0.0002244,2]
[314028937,1707927031789,-5976.09275175,0.00022898,2]
[314028938,1707927031799,-1000.0,0.00022899,2]
[314028939,1707927031808,-17593.44998744,0.00022899,2]
[314028940,1707927031820,-442.78975067,0.00022899,2]
[314028941,1707927031830,-244.02975258,0.000229,2]
[314028942,1707927031840,-1.7306733,0.000229,2]
[314028943,1707927031857,-164.04861471,0.000229,2]
[314028944,1707927031868,-1419.60776626,0.000229,2]
[314028945,1707927031878,-215.8411739,0.000229,2]
[314028946,1707927031887,-383.24122188,0.000229,2]
[314028947,1707927033890,-60.0275376,0.000229,2]
[314028948,1707927033900,-187.62,0.00022902,2]
[314028949,1707927033910,-912.61,0.00022943,2]
[314028950,1707927033921,-177.3,0.00022944,2]
[314028951,1707927033931,-187.62,0.00022962,2]
[314028952,1707927033943,-1870.80233735,0.0002299,2]
[314028953,1707927033954,-151.12841015,0.0002299,2]
[314028954,1707927033967,-945.90283649,0.00022998,2]
[314028955,1707927033979,-217.35535375,0.00022998,2]
[314028956,1707927033989,-436.19062659,0.00022998,2]
[314028957,1707927034000,-407.29582275,0.00022998,2]
[314028958,1707927034011,-163.17920846,0.00022998,2]
[314028959,1707927034022,-156.76204296,0.00022998,2]
[314028961,1707927034034,-155.0,0.00022998,2]
[314028963,1707927034044,-1885.68692861,0.00022998,2]
[314028965,1707927034054,-5060.1618712,0.00022998,2]
[314028967,1707927034064,-604.43075263,0.00022998,2]
[314028969,1707927034074,-158.49674896,0.00022998,2]
[314028971,1707927034084,-402.59161886,0.00022998,2]
[314028973,1707927034093,-526.41835171,0.00022998,2]
[314028976,1707927034104,-10593.09979094,0.00022998,2]
[314028979,1707927034113,-375.90053585,0.00022998,2]
[314028981,1707927034123,-1147.15292267,0.00022998,2]
[314028984,1707927034134,-155.0,0.00022998,2]
[314028987,1707927034143,-3526.11688769,0.00022998,2]
[314028990,1707927034153,-14656.2905519,0.00022998,2]
[314028997,1707927034181,-916.47854415,0.00022998,2]
[314029000,1707927034191,-478.00048233,0.00022998,2]
[314029003,1707927034201,-363.00840436,0.00022998,2]
[314029006,1707927034211,-163.31468357,0.00022998,2]
[314029009,1707927034221,-168.77202705,0.00022998,2]
[314029011,1707927034231,-227.64618969,0.00022998,2]
[314029013,1707927034241,-1665.10671083,0.00022998,2]
[314029015,1707927034252,-609.59080577,0.00022998,2]
[314029017,1707927034262,-186.02421925,0.00022998,2]
[314029019,1707927034272,-7854.86623307,0.00022998,2]
[314029020,1707927034573,-2332.22451383,0.00022998,2]
[314029021,1707927034584,-176.22705475,0.00022999,2]
[314029022,1707927034593,-2858.73842361,0.00022999,2]
[314029023,1707927034606,-56.94428902,0.00022999,2]
[314029024,1707927034616,-2222.21813227,0.00022999,2]
[314029025,1707927034626,-500.0,0.00022999,2]
[314029026,1707927034637,-500.0,0.00022999,2]
[314029027,1707927034647,-500.0,0.00022999,2]
[314029028,1707927034941,-500.0,0.00022999,2]
[314029029,1707927034959,-196.90959653,0.00022999,2]
[314029030,1707927034971,-303.09040347,0.00022999,2]
[314029031,1707927034982,-500.0,0.00022999,2]
[314029032,1707927034991,-500.0,0.00022999,2]
[314029033,1707927035000,-500.0,0.00022999,2]
[314029034,1707927035010,-500.0,0.00022999,2]
[314029035,1707927035019,-415.75886465,0.00022999,2]
[314029036,1707927035030,-150.0,0.00022999,2]
[314029037,1707927035040,-150.0,0.00022999,2]
[314029038,1707927035051,-117.87168946,0.00023,2]
[314029039,1707927035067,-2155.72676161,0.00023,2]
[314029040,1707927035079,-1472.97,0.00023,2]
[314029041,1707927035102,-659.32335701,0.00023,2]
[314029042,1707927035114,-277.93905889,0.00023,2]
[314029067,1707927037673,-270.64908,0.00022305,2]
[314029068,1707927037682,-706.95486468,0.000229,2]
[314029069,1707927037692,-14615.34137828,0.00023,2]
[314029070,1707927037738,-3639.44949927,0.00023,2]
[314029071,1707927037750,-24279.01116177,0.00023,2]
[314029072,1707927037761,-3637.17103812,0.00023,2]
[314029073,1707927037899,-16054.74706277,0.00023,2]
[314029074,1707927037911,-753.24002018,0.00023,2]
[314029075,1707927037924,-741.27723955,0.00023,2]
[314029076,1707927037938,-420.8888349,0.00023,2]
[314029077,1707927037950,-313.89851893,0.00023,2]
[314029078,1707927037982,-1530.90011679,0.000229,2]
[314029079,1707927037992,-1566.23988321,0.00023,2]
[314029080,1707927038005,-5727146.36052732,0.00023,2]
[314029081,1707927038015,-248.85176922,0.00023,2]
[314029082,1707927038025,-311.62537752,0.00023,2]
[314029083,1707927038035,-58469.01444893,0.00023,2]
[314029086,1707927038055,-4972.7,0.00023,2]
[314029090,1707927038682,-1176.60009051,0.00023,2]
[314029094,1707927040379,-255.913186,0.00023,2]
[314029095,1707927040494,-466.78739728,0.00023,2]
[314029096,1707927040507,-832.69985538,0.00023,2]
[314029097,1707927041433,-6203.29379221,0.00023,2]
[314029098,1707927041452,-1291.86734513,0.00023,2]
[314029112,1707927042889,-5172.228906,0.00023,2]
[314029113,1707927042901,-5212.50777671,0.00023,2]
[314029114,1707927042950,-4236.87458681,0.00023,2]
[314029115,1707927043015,-1081736.37315809,0.00023,2]
[314029116,1707927043074,-2421.6,0.00023,2]
[314029117,1707927043086,-17930.23341333,0.00023,2]
[314029118,1707927043135,-38998.49326134,0.00023,2]
[314029119,1707927043147,-790.88197577,0.00023,2]
[314029120,1707927043159,-258257.2255656,0.00023,2]
[314029124,1707927045797,-1812.71496742,0.000229,2]
[314029125,1707927045807,-12305.94630813,0.00023,2]
[314029126,1707927045819,-616.29103256,0.00023,2]
[314029127,1707927045862,-5300.79591999,0.00023,2]
[314029128,1707927045979,-3054.42417923,0.00023,2]
[314029131,1707927312718,-200.0,0.0002222,2]
[314029132,1707927312745,-36272.83027331,0.00022353,2]
[314029133,1707927312770,-270.64908,0.00022354,2]
[314029134,1707927312794,-181.64437593,0.00022354,2]
[314029135,1707927312821,-1263.30147671,0.00022355,2]
[314029136,1707927312847,-500.0,0.00022356,2]
[314029137,1707927312873,-402.83821741,0.00022401,2]
[314029138,1707927312899,-150.0,0.00022402,2]
[314029139,1707927319512,1406.38,0.0002048,2]
[314029140,1707927320817,4869.80400071,0.00022352,2]
[314029141,1707927335952,250.52,0.00022397,2]
[314029142,1707927340490,150.0,0.00022,2]
[314029143,1707927349440,165.55,0.00017958,2]
[314029144,1707927354072,202.2655046,0.00021978,2]
[314029145,1707927370214,250.0,0.00022448,2]
[314029146,1707927375670,250.0,0.00022448,2]
[314029147,1707927394107,200.0,0.00022397,2]
[314029148,1707927402186,175.74,0.00016712,2]
[314029149,1707927415486,200.0,0.00022352,2]
[314029150,1707927487122,354.14,0.00021898,2]
[314029151,1707927487617,2000.0,0.00022352,2]
[314029152,1707927518784,1000.0,0.00022375,2]
[314029153,1707927527276,3141.35362126,0.00021751,2]
[314029154,1707927551072,23900.0,0.00022375,2]
[314029155,1707927576255,500.0,0.00022279,2]
[314029156,1707927582160,171.52,0.00022193,2]
[314029157,1707927616364,168.89,0.00022159,2]
[314029158,1707927616787,168.89,0.0002239,2]
[314029159,1707927623629,6555.56,0.00021931,2]
[314029160,1707927670086,-270.64908,0.0002262,2]
[314029161,1707927670110,-168.89,0.00022621,2]
[314029162,1707927670133,-160.19608886,0.00022698,2]
[314029163,1707927670155,-160.19608883,0.00022716,2]
[314029164,1707927670182,-160.19608883,0.00022735,2]
[314029165,1707927670203,-1406.38,0.00022744,2]
[314029166,1707927670225,-160.19608883,0.00022753,2]
[314029167,1707927696455,150.0,0.00022056,2]
[314029168,1707927753017,500.0,0.00021978,2]
[314029169,1707927759764,200.0,0.00021965,2]
[314029170,1707927764165,155.0,0.00022769,2]
[314029171,1707927788513,150.0,0.0002261,2]
[314029172,1707927788539,1364.72480424,0.00018564,2]
[314029173,1707927788635,1364.72480424,0.000189,2]
[314029174,1707927788938,1364.72480424,0.00019158,2]
[314029175,1707927789283,1364.72480424,0.00019411,2]
[314029176,1707927789722,1364.72480424,0.00019553,2]
[314029177,1707927790088,1364.72480424,0.00019912,2]
[314029178,1707927790398,1364.72480424,0.00020132,2]
[314029179,1707927790737,1364.72480424,0.0002046,2]
[314029180,1707927791088,1364.72480424,0.00020707,2]
[314029181,1707927791641,1364.72480424,0.00021078,2]
[314029182,1707927791750,1364.72480424,0.00021334,2]
[314029183,1707927792116,1346.32371801,0.00021492,2]
[314029184,1707927792141,18.40108623,0.00021492,2]
[314029185,1707927792628,1364.72480424,0.00021785,2]
[314029186,1707927792972,1364.72480424,0.00022161,2]
[314029187,1707927793290,1364.72480424,0.0002227,2]
[314029188,1707927821477,219.13,0.00021953,2]
[314029189,1707927838533,428.63,0.00021951,2]
[314029190,1707927847137,250.0,0.00021942,2]
[314029191,1707927851042,250.0,0.00021942,2]
[314029192,1707927857744,156.44,0.00021933,2]
[314029193,1707927880409,200.0,0.00021942,2]
[314029194,1707927895542,169.38,0.00021935,2]
[314029195,1707927897856,1282.99,0.0002001,2]
[314029196,1707927898107,1282.99,0.00022274,2]
[314029197,1707927917753,1364.72480426,0.00021566,2]
[314029198,1707927918074,1364.72480426,0.00021868,2]
[314029199,1707927918910,1364.72480426,0.00021982,2]
[314029200,1707927919226,1364.72480426,0.00022412,2]
[314029201,1707927940309,-270.64908,0.00022611,2]
[314029202,1707927940332,-2158.8765801,0.00022611,2]
[314029203,1707927940356,-71.66215531,0.00022612,2]
[314029204,1707927968906,200.0,0.00021935,2]
[314029205,1707927979564,200.0,0.00021935,2]
[314029206,1707927993346,625.14615193,0.00021978,2]
[314029207,1707928001114,-176.01911523,0.00022612,2]
[314029208,1707928017542,1281.17,0.00021938,2]
[314029209,1707928028120,-270.64908,0.00022611,2]
[314029210,1707928028139,-147.12311816,0.00022612,2]
[314029211,1707928028160,-710.77153362,0.00022726,2]
[314029212,1707928033075,1187.03192086,0.00022278,2]
[314029213,1707928038732,-1187.03192086,0.00022667,2]
[314029214,1707928038761,-160.19608883,0.00022771,2]
[314029215,1707928038786,-160.19608883,0.0002279,2]
[314029216,1707928038807,-150.0,0.00022795,2]
[314029217,1707928038828,-150.0,0.00022795,2]
[314029218,1707928038847,-300.0,0.00022795,2]
[314029219,1707928038867,-7518.2684,0.00022796,2]
[314029220,1707928038888,-2500.0,0.00022796,2]
[314029221,1707928038908,-1161.0181,0.00022796,2]
[314029222,1707928038928,-498.7415,0.00022796,2]
[314029223,1707928038949,-1516.81630833,0.00022796,2]
[314029224,1707928038969,-1000.0,0.00022798,2]
[314029225,1707928038987,-488.3893,0.00022798,2]
[314029226,1707928039011,-13499.1843,0.00022798,2]
[314029227,1707928039030,-2017.76872334,0.00022798,2]
[314029228,1707928040123,-1566.13837666,0.00022798,2]
[314029229,1707928040143,-1000.0,0.00022798,2]
[314029230,1707928040163,-5055.15,0.00022798,2]
[314029231,1707928040183,-678.4512,0.00022798,2]
[314029232,1707928040203,-190.1123,0.00022798,2]
[314029233,1707928040224,-160.19608883,0.00022808,2]
[314029234,1707928040246,-160.19608883,0.00022827,2]
[314029235,1707928040273,-160.19608883,0.00022845,2]
[314029236,1707928040293,-1496.08,0.00022845,2]
[314029237,1707928040312,-499.99,0.00022845,2]
[314029238,1707928040334,-168.89,0.00022852,2]
[314029239,1707928040354,-160.19608883,0.00022863,2]
[314029240,1707928040374,-160.19608883,0.00022882,2]
[314029241,1707928040400,-14733.11368095,0.00022887,2]
[314029242,1707928040421,-2449.3396,0.0002289,2]
[314029243,1707928040441,-156.21963749,0.00022894,2]
[314029244,1707928040461,-296.46278445,0.00022894,2]
[314029245,1707928040480,-157.39856335,0.00022894,2]
[314029246,1707928040502,-634.2558343,0.00022894,2]
[314029247,1707928040521,-155.0,0.00022894,2]
[314029248,1707928040540,-205.16335696,0.00022894,2]
[314029249,1707928040561,-155.0,0.00022894,2]
[314029250,1707928040581,-178.12120083,0.00022894,2]
[314029251,1707928040600,-423.24642695,0.00022894,2]
[314029252,1707928040619,-202.70735832,0.00022894,2]
[314029253,1707928040638,-156.07370626,0.00022894,2]
[314029254,1707928040659,-2125.78851292,0.00022894,2]
[314029255,1707928040679,-2332.16460008,0.00022894,2]
[314029256,1707928040699,-409.44210918,0.00022894,2]
[314029257,1707928040719,-700.84619272,0.00022894,2]
[314029258,1707928040738,-155.48463422,0.00022895,2]
[314029259,1707928040759,-155.0,0.00022895,2]
[314029260,1707928040778,-85843.40722264,0.00022896,2]
[314029261,1707928043104,-14156.59277736,0.00022896,2]
[314029262,1707928043125,-7640.86319201,0.00022896,2]
[314029263,1707928053302,169.74,0.00022232,2]
[314029264,1707928064262,2000.0,0.00022203,2]
[314029265,1707928082153,5508.33,0.00022152,2]
[314029268,1707928103904,8732.93,0.00022151,2]
[314029271,1707928120407,168.89,0.00022317,2]
[314029274,1707928155178,-12248.9269,0.00022696,2]
[314029275,1707928155204,-270.64908,0.00022795,2]
[314029276,1707928155224,-88636.3641,0.00022796,2]
[314029277,1707928155244,-1000.0,0.00022796,2]
[314029278,1707928155265,-59800.43992,0.00022796,2]
[314029279,1707928163103,-1187.03192087,0.00022578,2]
[314029280,1707928163122,-1291.32576374,0.00022796,2]
[314029281,1707928165089,-2348.86762932,0.00022796,2]
[314029286,1707928198519,150.0,0.00022194,2]
[314029307,1707928231840,-270.64908,0.00022795,2]
[314029309,1707928231849,-150.0,0.00022795,2]
[314029311,1707928231858,-300.0,0.00022795,2]
[314029313,1707928231867,-6133.64531273,0.00022796,2]
[314029316,1707928231891,-109369.90506283,0.00022796,2]
[314029318,1707928231903,-251.11879593,0.00022796,2]
[314029321,1707928231970,-58507.79060337,0.00022796,2]
[314029322,1707928232001,-364.38805908,0.00022796,2]
[314029323,1707928232029,-450.52,0.00022796,2]
[314029324,1707928233165,-86718.69442715,0.00022796,2]
[314029325,1707928233177,-18327.1771936,0.00022796,2]
[314029326,1707928233189,-15420.0,0.00022796,2]
[314029327,1707928233221,-1985.68593225,0.00022796,2]
[314029328,1707928233231,-375.6833,0.00022796,2]
[314029329,1707928233240,-1000.0,0.00022796,2]
[314029330,1707928233250,-2500.0,0.00022796,2]
[314029331,1707928233259,-506.70255148,0.00022895,2]
[314029332,1707928233269,-724.91,0.00022896,2]
[314029333,1707928233279,-205547.52743428,0.00022896,2]
[314029334,1707928233292,-6052.93569087,0.00022896,2]
[314029335,1707928233305,-2240.03021679,0.00022896,2]
[314029336,1707928233317,-23518.64346605,0.00022896,2]
[314029337,1707928233326,-305.6243,0.00022896,2]
[314029339,1707928233337,-737.69,0.00022896,2]
[314029341,1707928233346,-292.01625046,0.00022896,2]
[314029343,1707928233355,-203.86503207,0.00022896,2]
[314029345,1707928233364,-550.71003487,0.00022896,2]
[314029347,1707928233374,-1270.78455751,0.00022896,2]
[314029349,1707928233386,-267.88209086,0.00022896,2]
[314029351,1707928233396,-719.57591544,0.00022896,2]
[314029354,1707928233405,-27791.97,0.00022897,2]
[314029357,1707928233414,-8693.38074615,0.00022898,2]
[314029359,1707928233423,-160.19608883,0.000229,2]
[314029362,1707928233433,-449.41133442,0.000229,2]
[314029364,1707928233443,-1208.47664494,0.000229,2]
[314029367,1707928233453,-11077.77447216,0.000229,2]
[314029370,1707928233463,-1625.57676341,0.000229,2]
[314029373,1707928233473,-800.0,0.00022959,2]
[314029376,1707928233482,-169.74,0.00022973,2]
[314029379,1707928233492,-195.92919896,0.00022985,2]
[314029381,1707928233502,-2148.67970771,0.00022994,2]
[314029383,1707928233513,-205.94050564,0.00022994,2]
[314029384,1707928233529,-534.40340613,0.00022995,2]
[314029385,1707928233550,-500.0,0.00022995,2]
[314029386,1707928233559,-17.14847917,0.00022995,2]
[314029387,1707928233631,-482.85152083,0.00022995,2]
[314029388,1707928233640,-500.0,0.00022995,2]
[314029389,1707928233650,-500.0,0.00022995,2]
[314029390,1707928233659,-500.0,0.00022995,2]
[314029391,1707928233668,-500.0,0.00022995,2]
[314029392,1707928233677,-456.85984495,0.00022995,2]
[314029393,1707928233686,-2049.86875032,0.00022996,2]
[314029394,1707928233697,-607.87823177,0.00022996,2]
[314029395,1707928233709,-280.56667432,0.00022996,2]
[314029404,1707928237868,-5040.49999858,0.00022996,2]
[314029405,1707928237886,-325617.37693008,0.00022996,2]
[314029406,1707928237931,-2027.30141711,0.00022996,2]
[314029407,1707928237988,-1542.21,0.00022996,2]
[314029408,1707928238000,-7177.81603979,0.00022996,2]
[314029409,1707928238012,-22119.01879129,0.00022996,2]
[314029410,1707928238052,-5144.9,0.00022996,2]
[314029411,1707928238066,-5137.64958261,0.00022996,2]
[314029412,1707928238078,-5144.9,0.00022996,2]
[314029413,1707928238145,-460.89446664,0.00022996,2]
[314029414,1707928238156,-254.99999,0.00022996,2]
[314029415,1707928238218,-1250.52498385,0.00022996,2]
[314029416,1707928238229,-1066.58487829,0.00022996,2]
[314029417,1707928238241,-631.57599765,0.00022996,2]
[314029418,1707928238253,-1064.29458058,0.00022996,2]
[314029419,1707928238273,-2728.30000002,0.00022996,2]
[314029420,1707928238285,-9373.34321165,0.00022996,2]
[314029422,1707928238300,-638080.29402534,0.00022996,2]
[314029423,1707928238311,-157.62435224,0.00022998,2]
[314029424,1707928238321,-773.26977575,0.00022998,2]
[314029425,1707928238331,-481.45532796,0.00022998,2]
[314029426,1707928238341,-532.45915504,0.00022998,2]
[314029427,1707928238352,-385.38222975,0.00022998,2]
[314029428,1707928238642,-3524.44333971,0.00022998,2]
[314029429,1707928238653,-356.18447517,0.00022998,2]
[314029430,1707928238663,-4722.10110107,0.00022998,2]
[314029431,1707928238672,-280.0,0.00022998,2]
[314029432,1707928238682,-315.43231307,0.00022998,2]
[314029433,1707928238694,-158.34693503,0.00022998,2]
[314029434,1707928238704,-281.69784795,0.00022998,2]
[314029435,1707928238713,-10502.63697635,0.00022998,2]
[314029436,1707928238722,-526.22979665,0.00022998,2]
[314029437,1707928238732,-247.72543542,0.00022998,2]
[314029438,1707928238741,-612.28293982,0.00022998,2]
[314029439,1707928238750,-203.3309099,0.00022998,2]
[314029440,1707928238760,-159.19673808,0.00022998,2]
[314029441,1707928238770,-159.26253707,0.00022998,2]
[314029442,1707928238779,-476.72143688,0.00022998,2]
[314029443,1707928238789,-156.19727004,0.00022998,2]
[314029444,1707928238798,-338.48887294,0.00022998,2]
[314029445,1707928238807,-11966.46678452,0.00022998,2]
[314029446,1707928238817,-191.87819356,0.00022998,2]
[314029447,1707928238826,-4084.7966536,0.00022998,2]
[314029448,1707928238835,-1209.8078839,0.00022998,2]
[314029449,1707928238844,-155.49771381,0.00022998,2]
[314029450,1707928238854,-198.73506881,0.00022998,2]
[314029451,1707928238863,-1995.99534826,0.00022998,2]
[314029452,1707928238873,-744.44062908,0.00022999,2]
[314029453,1707928238884,-1968.04280625,0.00022999,2]
[314029454,1707928238893,-87559.90193662,0.00023,2]
[314029455,1707928238906,-998.4,0.00023,2]
[314029456,1707928238917,-1025.74,0.00023,2]
[314029463,1707928240499,-10084.7378,0.00023,2]
[314029464,1707928240511,-1009.36561679,0.00023,2]
[314029465,1707928240522,-22311.16184018,0.00023,2]
[314029466,1707928241166,-209988.31349598,0.00023,2]
[314029467,1707928241178,-2409.35153101,0.00023,2]
[314029468,1707928241190,-5500.69846122,0.00023,2]
[314029469,1707928241260,-2261.09433935,0.00023,2]
[314029470,1707928241276,-953.84846005,0.00023,2]
[314029471,1707928241299,-498140.0,0.00023,2]
[314029472,1707928241364,-99599.1481212,0.00023,2]
[314029482,1707928241581,-196397.63129969,0.00023,2]
[314029484,1707928241590,-248.85176922,0.00023,2]
[314029486,1707928241600,-311.62537752,0.00023,2]
[314029488,1707928241609,-155.0,0.00023,2]
[314029490,1707928241618,-162.79454632,0.00023,2]
[314029492,1707928241627,-1037.11490736,0.00023046,2]
[314029494,1707928241639,-219.13,0.00023051,2]
[314029496,1707928241648,-912.61,0.0002306,2]
[314029498,1707928241658,-4655.34528714,0.0002313,2]
[314029500,1707928241666,-1187.03192088,0.00023146,2]
[314029502,1707928241675,-912.61,0.00023176,2]
[314029504,1707928241684,-912.61,0.00023293,2]
[314029506,1707928241693,-166.21,0.00023333,2]
[314029508,1707928241703,-912.61,0.00023409,2]
[314029510,1707928241712,-168.89,0.0002348,2]
[314029512,1707928241721,-166.0,0.00023505,2]
[314029514,1707928241729,-225.0,0.00023522,2]
[314029516,1707928241738,-912.61,0.00023526,2]
[314029518,1707928241747,-912.61,0.00023642,2]
[314029520,1707928241756,-169.74,0.00023714,2]
[314029522,1707928241765,-912.61,0.00023758,2]
[314029524,1707928241774,-5508.33,0.00023796,2]
[314029526,1707928241783,-912.61,0.00023875,2]
[314029528,1707928241792,-912.61,0.00023991,2]
[314029530,1707928241801,-202.22442285,0.00024,2]
[314029532,1707928241810,-519.5843072,0.00024,2]
[314029534,1707928241819,-912.61,0.00024108,2]
[314029536,1707928241828,-1312.73592981,0.00024111,2]
[314029538,1707928241837,-219.13,0.00024148,2]
[314029540,1707928241851,-912.61,0.00024224,2]
[314029542,1707928241860,-186.47212307,0.000243,2]
[314029544,1707928241869,-192.160077,0.000243,2]
[314029545,1707928241879,-153.72,0.00024323,2]
[314029546,1707928241890,-912.61,0.00024341,2]
[314029547,1707928241900,-4152.22,0.00024384,2]
[314029548,1707928241910,-8693.38074609,0.00024444,2]
[314029549,1707928241919,-169.74,0.00024455,2]
[314029550,1707928241929,-1282.99,0.00024538,2]
[314029551,1707928241939,-7135.93629303,0.000246,2]
[314029552,1707928241948,-250.0,0.00024658,2]
[314029553,1707928241959,-200.0,0.00024677,2]
[314029554,1707928241969,-300.0,0.0002475,2]
[314029555,1707928241981,-225.0,0.00024892,2]
[314029556,1707928241990,-946.31124793,0.00025,2]
[314029557,1707928241999,-159.89262524,0.00025,2]
[314029558,1707928242009,-168.26749515,0.00025,2]
[314029559,1707928242019,-1909.75102483,0.00025,2]
[314029560,1707928242029,-622.49852888,0.00025,2]
[314029561,1707928242038,-1592.09246113,0.00025,2]
[314029562,1707928242047,-512.26744547,0.00025,2]
[314029563,1707928242057,-155.0,0.00025,2]
[314029564,1707928242066,-1256.25370781,0.00025,2]
[314029565,1707928242075,-200.0,0.00025,2]
[314029566,1707928242084,-3000.0,0.00025,2]
[314029567,1707928242093,-1250.0,0.00025,3]
[314029568,1707928242102,-3000.0,0.0002501,2]
[314029569,1707928242111,-3775.533848,0.0002502,2]
[314029570,1707928242121,-210.0,0.00025074,2]
[314029571,1707928242130,-1516.81630827,0.00025083,2]
[314029572,1707928242140,-166.0,0.00025149,2]
[314029573,1707928242149,-1000.0,0.00025171,2]
[314029574,1707928242158,-219.13,0.00025246,2]
[314029575,1707928242167,-166.21,0.00025258,2]
[314029576,1707928242176,-5508.33,0.00025439,2]
[314029577,1707928242185,-153.72,0.00025613,2]
[314029578,1707928242196,-3673.66627797,0.00025789,2]
[314029579,1707928242206,-8693.38074609,0.00025989,2]
[314029580,1707928242217,-1500.0,0.00026111,2]
[314029581,1707928242227,-219.13,0.00026343,2]
[314029582,1707928242236,-166.0,0.00026793,2]
[314029583,1707928242245,-1282.99,0.00026802,2]
[314029584,1707928242255,-153.72,0.00026903,2]
[314029585,1707928242264,-418.5019054,0.00027,2]
[314029586,1707928242274,-155.16189438,0.00027,2]
[314029587,1707928242283,-1300.0,0.00027,3]
[314029588,1707928242293,-5508.33,0.00027083,2]
[314029589,1707928242302,-2500.0,0.00027111,2]
[314029590,1707928242315,-3395.92,0.00027123,2]
[314029591,1707928242326,-166.21,0.00027184,2]
[314029592,1707928242335,-1516.81630827,0.0002737,3]
[314029593,1707928242345,-155.0,0.00027397,2]
[314029594,1707928242355,-150.0,0.00027397,2]
[314029595,1707928242364,-7429.98,0.00027397,2]
[314029596,1707928242373,-39491.42,0.00027397,2]
[314029597,1707928242383,-14642.29,0.00027397,2]
[314029598,1707928242392,-2000.0,0.000274,2]
[314029599,1707928242401,-200.0,0.00027418,2]
[314029600,1707928242410,-155.28403879,0.000275,2]
[314029601,1707928242420,-8693.38074609,0.00027535,2]
[314029602,1707928242429,-7429.98,0.00027556,2]
[314029603,1707928242439,-293.0,0.00027582,2]
[314029604,1707928242448,-7429.98,0.00027714,2]
[314029605,1707928242457,-7429.98,0.00027872,2]
[314029606,1707928242467,-150.0,0.00027945,2]
[314029607,1707928242476,-1000.0,0.00027968,2]
[314029608,1707928242485,-172026.49899771,0.00028,2]
[314029609,1707928242494,-969.27668517,0.00028,2]
[314029610,1707928242503,-14828.43018801,0.00028,2]
[314029611,1707928242512,-296.56860376,0.00028,2]
[314029612,1707928242521,-7429.98,0.0002803,2]
[314029613,1707928242530,-7429.98,0.00028189,2]
[314029614,1707928242538,-153.72,0.00028194,2]